bitfinex/quotes_BTCUSD_20241111
["timestamp","ask_amount","ask_price","bid_price","bid_amount"]
[1731318749121,0.12678521,81723.0,81722.0,0.122365]
[1731318750737,0.12678521,81723.0,81722.0,0.1270346]
[1731318750972,0.000843,81723.0,81722.0,0.2320346]
[1731318751408,0.000843,81723.0,81722.0,0.2340346]
[1731318752729,0.000843,81723.0,81722.0,0.23436122]
[1731318753493,0.12678521,81723.0,81722.0,0.2320346]
[1731318753700,0.12678521,81723.0,81722.0,0.2270346]
[1731318753924,0.12678521,81723.0,81722.0,0.2320346]
[1731318754129,0.12678521,81723.0,81722.0,0.2270346]
[1731318756378,0.12678521,81723.0,81722.0,0.0046696]
[1731318756515,0.12678521,81723.0,81706.0,0.006686]
[1731318756516,0.48069318,81723.0,81706.0,0.001686]
[1731318756720,0.0365399,81715.0,81711.0,0.18409539]
[1731318756967,0.081,81713.0,81710.0,0.001686]
[1731318757282,0.12594221,81712.0,81710.0,0.001686]
[1731318758055,0.12594221,81712.0,81710.0,0.00632449]
[1731318759276,0.12594221,81712.0,81711.0,0.222382]
[1731318759480,0.12594221,81712.0,81711.0,0.122382]
[1731318760437,0.16248538,81712.0,81711.0,0.122382]
[1731318760640,0.12594221,81712.0,81711.0,0.122382]
[1731318761380,0.11754317,81713.0,81712.0,0.005]
[1731318761381,0.03654317,81713.0,81712.0,0.005]
[1731318761523,0.12594221,81713.0,81712.0,0.127381]
[1731318762045,0.12594221,81713.0,81712.0,0.129381]
[1731318762206,0.12594221,81713.0,81712.0,0.229381]
[1731318762407,0.12594221,81713.0,81712.0,0.227381]
[1731318762656,0.12594221,81713.0,81712.0,0.222381]
[1731318763808,0.25244221,81713.0,81712.0,0.222381]
[1731318764014,0.28898538,81713.0,81712.0,0.122381]
[1731318764241,0.30725697,81713.0,81712.0,0.122381]
[1731318764409,0.38748768,81713.0,81712.0,0.122381]
[1731318765078,0.46057312,81713.0,81712.0,0.122381]
[1731318765376,1.96057312,81713.0,81712.0,0.122381]
[1731318765936,0.46057312,81713.0,81712.0,0.122381]
[1731318766573,0.38423674,81713.0,81712.0,0.122381]
[1731318766779,0.33613674,81713.0,81712.0,0.122381]
[1731318767174,0.20109218,81713.0,81712.0,0.122381]
[1731318767429,0.12269218,81713.0,81712.0,0.122381]
[1731318768398,0.12269218,81713.0,81712.0,0.222381]
[1731318768822,0.12269218,81713.0,81712.0,0.224381]
[1731318769051,0.12269218,81713.0,81712.0,0.222381]
[1731318769760,0.12269218,81713.0,81712.0,0.224067]
[1731318769966,0.12353518,81713.0,81712.0,0.226067]
[1731318770227,0.12353518,81713.0,81712.0,0.224067]
[1731318771035,0.12353518,81713.0,81712.0,0.226067]
[1731318771805,0.12353518,81713.0,81712.0,0.224067]
[1731318775102,0.000843,81713.0,81712.0,0.231067]
[1731318776767,0.000843,81713.0,81712.0,0.229067]
[1731318777413,0.000843,81713.0,81712.0,0.22811604]
[1731318778287,0.000843,81713.0,81712.0,0.23011604]
[1731318778760,0.000843,81713.0,81712.0,0.22811604]
[1731318778955,0.000843,81713.0,81712.0,0.23011604]
[1731318780800,0.000843,81713.0,81712.0,0.23256358]
[1731318781247,0.000843,81713.0,81712.0,0.23011604]
[1731318782145,0.000843,81713.0,81712.0,0.2325634]
[1731318782620,0.000843,81713.0,81712.0,0.23011604]
[1731318783084,0.000843,81713.0,81712.0,0.22811604]
[1731318783298,0.000843,81713.0,81712.0,0.2325634]
[1731318783503,0.000843,81713.0,81712.0,0.23011604]
[1731318783727,0.000843,81723.0,81722.0,0.227366]
[1731318784854,0.000843,81723.0,81722.0,0.39953378]
[1731318785345,0.000843,81723.0,81722.0,0.229366]
[1731318785987,0.000843,81723.0,81722.0,0.227366]
[1731318786209,0.000843,81723.0,81722.0,0.23410961]
[1731318788150,0.000843,81723.0,81722.0,0.40427739]
[1731318788369,0.00049506,81731.0,81730.0,0.229354]
[1731318789985,0.00049506,81731.0,81730.0,0.52202178]
[1731318790215,0.000694,81733.0,81732.0,0.224351]
[1731318790216,0.00053776,81733.0,81732.0,0.224351]
[1731318790652,0.000694,81748.0,81742.0,0.229336]
[1731318793153,0.000694,81748.0,81747.0,0.222328]
[1731318793393,0.000694,81748.0,81747.0,0.229328]
[1731318793617,0.000694,81748.0,81747.0,0.35337429]
[1731318793844,0.00027,81750.0,81747.0,0.23985342]
[1731318794077,0.000693,81756.0,81755.0,0.124316]
[1731318794289,0.000693,81756.0,81755.0,0.224316]
[1731318795837,0.000693,81756.0,81755.0,0.229316]
[1731318796701,0.000693,81756.0,81755.0,0.22812625]
[1731318796925,0.000693,81756.0,81755.0,0.23312625]
[1731318797137,0.000693,81756.0,81755.0,0.22812625]
[1731318797349,0.000693,81756.0,81755.0,0.23312625]
[1731318798451,0.0134653,81764.0,81763.0,0.224304]
[1731318799832,0.0134653,81764.0,81763.0,0.229304]
[1731318802123,0.0134653,81764.0,81763.0,0.227304]
[1731318803016,0.13940751,81764.0,81763.0,0.222304]
[1731318803247,0.13940751,81764.0,81763.0,0.224304]
[1731318803718,0.13940751,81764.0,81763.0,0.222304]
[1731318804024,0.22010751,81764.0,81763.0,0.222304]
[1731318804647,1.72010751,81764.0,81763.0,0.222304]
[1731318805926,0.22010751,81764.0,81763.0,0.222304]
[1731318808249,0.22010751,81764.0,81763.0,0.229304]
[1731318808250,0.0134653,81764.0,81763.0,0.229304]
[1731318809301,0.22140751,81764.0,81763.0,0.222304]
[1731318809649,0.22140751,81764.0,81761.0,0.244615]
[1731318809827,0.12594221,81763.0,81762.0,0.122306]
[1731318810242,1.62594221,81763.0,81762.0,0.122306]
[1731318811660,1.62594221,81763.0,81762.0,0.222306]
[1731318811861,1.62594221,81763.0,81762.0,0.224306]
[1731318812253,0.0954653,81764.0,81762.0,0.224306]
[1731318812254,0.0134653,81764.0,81763.0,0.229304]
[1731318812506,0.000693,81764.0,81763.0,0.229304]
[1731318814548,0.000693,81764.0,81763.0,0.224304]
[1731318814800,0.000693,81764.0,81763.0,0.229304]
[1731318816177,0.000693,81764.0,81763.0,0.222304]
[1731318816178,0.12663521,81764.0,81763.0,0.222304]
[1731318816849,1.62663521,81764.0,81763.0,0.22399]
[1731318817248,0.12663521,81764.0,81763.0,0.22399]
[1731318819199,0.12663521,81764.0,81763.0,0.22599]
[1731318819996,0.12663521,81764.0,81763.0,0.22399]
[1731318822721,0.12663521,81764.0,81763.0,0.22599]
[1731318823264,0.12663521,81764.0,81763.0,0.22399]
[1731318824609,0.20961611,81764.0,81763.0,0.001686]
[1731318824876,0.29061611,81764.0,81763.0,0.001686]
[1731318825178,0.023,81763.0,81749.0,0.005]
[1731318825372,0.023,81761.0,81756.0,0.18409539]
[1731318825598,0.023,81759.0,81749.0,0.005]
[1731318825892,0.03647305,81762.0,81757.0,0.005]
[1731318826116,0.12594221,81761.0,81757.0,0.005]
[1731318826351,0.12594221,81761.0,81757.0,0.007]
[1731318826486,0.12594221,81761.0,81760.0,0.122309]
[1731318830056,0.12594221,81761.0,81760.0,0.123995]
[1731318831133,0.14894221,81761.0,81760.0,0.123995]
[1731318831381,0.14894221,81761.0,81760.0,0.001686]
[1731318831382,1.72574221,81761.0,81760.0,0.001686]
[1731318831811,1.72574221,81761.0,81709.0,0.05416102]
[1731318831812,0.25,81730.0,81709.0,0.05416102]
[1731318832024,2.63010999,81761.0,81722.0,0.30646139]
[1731318832025,0.14894221,81723.0,81722.0,0.30646139]
[1731318832233,0.0034,81728.0,81709.0,0.30093002]
[1731318832234,0.0264,81728.0,81727.0,0.122358]
[1731318832465,0.0034,81728.0,81722.0,0.24473]
[1731318832685,0.0034,81728.0,81720.0,0.005]
[1731318832686,1.5034,81728.0,81721.0,0.244735]
[1731318832894,0.12594221,81727.0,81723.0,0.122363]
[1731318833144,0.023,81726.0,81712.0,0.00632627]
[1731318833370,0.023,81724.0,81721.0,0.1]
[1731318833589,0.023,81722.0,81721.0,0.1]
[1731318833840,0.14894221,81722.0,81721.0,0.1]
[1731318834476,0.14894221,81722.0,81720.0,0.1]
[1731318834697,0.023,81720.0,81716.0,0.122373]
[1731318834900,0.023,81726.0,81718.0,0.122372]
[1731318834901,0.12594221,81719.0,81718.0,0.122372]
[1731318835126,0.14894221,81719.0,81718.0,0.222372]
[1731318835330,0.14894221,81719.0,81718.0,0.1]
[1731318835773,0.16383643,81719.0,81712.0,0.00632627]
[1731318836221,0.023,81717.0,81712.0,0.00632627]
[1731318836446,0.023,81715.0,81714.0,0.122378]
[1731318836673,0.14894221,81715.0,81714.0,0.122378]
[1731318837552,0.12594221,81715.0,81714.0,0.127378]
[1731318838677,0.12594221,81715.0,81714.0,0.122378]
[1731318839730,0.14639643,81715.0,81714.0,0.122378]
[1731318839962,0.12594221,81715.0,81714.0,0.122378]
[1731318840774,0.12594221,81715.0,81712.0,0.124066]
[1731318840984,0.14894221,81714.0,81713.0,0.122379]
[1731318842110,1.64894221,81714.0,81713.0,0.122379]
[1731318842332,0.14894221,81714.0,81713.0,0.122379]
[1731318843545,0.17169643,81714.0,81713.0,0.122379]
[1731318843790,0.14894221,81714.0,81712.0,0.001686]
[1731318843911,0.14894221,81714.0,81712.0,0.124065]
[1731318844116,0.14894221,81714.0,81713.0,0.122379]
[1731318844938,0.14894221,81714.0,81712.0,0.001686]
[1731318845274,0.14894221,81714.0,81713.0,0.122379]
[1731318845683,0.14894221,81714.0,81712.0,0.001686]
[1731318845885,0.14894221,81714.0,81712.0,0.124066]
[1731318846383,0.14894221,81714.0,81713.0,0.122379]
[1731318848432,0.12594221,81714.0,81713.0,0.122379]
[1731318848647,0.0004,81722.0,81721.0,0.122367]
[1731318848879,0.14934221,81722.0,81721.0,0.122367]
[1731318849319,0.14934221,81722.0,81714.0,0.005]
[1731318849320,0.023,81721.0,81714.0,0.005]
[1731318849524,0.12594221,81720.0,81719.0,0.12237]
[1731318849935,0.14894221,81720.0,81719.0,0.12237]
[1731318850979,0.023,81719.0,81714.0,0.00471137]
[1731318851186,0.0004,81722.0,81716.0,0.122375]
[1731318851187,0.023,81717.0,81716.0,0.122375]
[1731318851427,0.14894221,81717.0,81716.0,0.122375]
[1731318852236,0.14894221,81717.0,81716.0,0.12193774]
[1731318855611,0.0004,81722.0,81721.0,0.122367]
[1731318855817,0.12634221,81722.0,81721.0,0.122367]
[1731318856281,0.12634221,81722.0,81721.0,0.124367]
[1731318856488,0.12634221,81722.0,81721.0,0.122367]
[1731318858067,0.12634221,81722.0,81721.0,0.224367]
[1731318858331,0.12634221,81722.0,81721.0,0.222367]
[1731318859648,0.12634221,81722.0,81721.0,0.22716092]
[1731318860344,0.13897643,81722.0,81721.0,0.00479392]
[1731318860561,0.25154221,81722.0,81721.0,0.00479392]
[1731318860772,0.25154221,81722.0,81715.0,0.1]
[1731318860773,0.023,81721.0,81715.0,0.1]
[1731318860967,0.12594221,81720.0,81715.0,0.122376]
[1731318861193,1.5,81719.0,81714.0,0.00477346]
[1731318861420,0.12594221,81718.0,81714.0,0.12715046]
[1731318861665,0.12594221,81718.0,81715.0,0.122376]
[1731318861870,0.12594221,81718.0,81713.0,0.246444]
[1731318861871,0.12594221,81718.0,81716.0,0.122374]
[1731318862078,0.12594221,81718.0,81713.0,0.001686]
[1731318862079,1.5,81717.0,81713.0,0.001686]
[1731318862283,0.12594221,81716.0,81713.0,0.001686]
[1731318862484,0.12594221,81716.0,81713.0,0.2510866]
[1731318862703,0.12594221,81716.0,81715.0,0.122376]
[1731318862969,1.62594221,81716.0,81715.0,0.122376]
[1731318863761,0.12594221,81716.0,81715.0,0.122376]
[1731318865382,0.0782,81722.0,81719.0,0.005]
[1731318865383,0.0004,81722.0,81719.0,0.005]
[1731318865620,0.0004,81722.0,81721.0,0.224367]
[1731318867237,0.0004,81722.0,81721.0,0.229367]
[1731318867455,0.12634221,81722.0,81721.0,0.229367]
[1731318868933,0.0004,81722.0,81721.0,0.229367]
[1731318869151,0.0004,81722.0,81721.0,0.41612964]
[1731318869355,0.0004,81722.0,81721.0,0.53873478]
[1731318869613,0.001243,81722.0,81721.0,0.53873478]
[1731318869831,0.001243,81722.0,81721.0,0.54350763]
[1731318870043,0.18409539,81742.0,81741.0,0.224337]
[1731318870253,0.18409539,81742.0,81741.0,0.229337]
[1731318870882,0.0819,81750.0,81745.0,0.122331]
[1731318871085,0.0819,81750.0,81745.0,0.222331]
[1731318871086,0.12678521,81746.0,81745.0,0.222331]
[1731318873083,0.12518521,81746.0,81745.0,0.222331]
[1731318875980,0.0781,81745.0,81731.0,0.007]
[1731318876178,0.0781,81745.0,81716.0,0.001686]
[1731318876179,0.1376051,81740.0,81724.0,0.005]
[1731318876355,0.03650728,81737.0,81728.0,0.122356]
[1731318876560,0.03650728,81737.0,81725.0,0.42881639]
[1731318876561,0.05952394,81734.0,81729.0,0.122355]
[1731318876776,0.16246623,81733.0,81729.0,0.122354]
[1731318877229,0.16246623,81733.0,81725.0,0.244721]
[1731318877230,0.16246623,81733.0,81732.0,0.122351]
[1731318877546,0.12594221,81733.0,81732.0,0.122351]
[1731318877884,1.62594221,81733.0,81732.0,0.222351]
[1731318878308,1.62594221,81733.0,81732.0,0.1]
[1731318878514,1.62594221,81733.0,81732.0,0.22252895]
[1731318878718,1.62594221,81733.0,81732.0,0.1]
[1731318878920,1.62594221,81733.0,81732.0,0.122351]
[1731318879209,1.62594221,81733.0,81732.0,0.1]
[1731318879443,1.62594221,81733.0,81732.0,0.222351]
[1731318879772,1.62594221,81733.0,81732.0,0.1]
[1731318880109,1.62594221,81733.0,81728.0,0.1]
[1731318880329,1.62594221,81733.0,81731.0,0.1]
[1731318881407,1.62678521,81733.0,81731.0,0.1]
[1731318881612,1.62678521,81733.0,81732.0,0.222351]
[1731318882742,1.62678521,81733.0,81730.0,0.1]
[1731318882949,1.62678521,81733.0,81727.0,0.222357]
[1731318883146,1.62678521,81733.0,81727.0,0.1]
[1731318883660,0.023,81729.0,81725.0,0.1]
[1731318883807,0.12594221,81728.0,81725.0,0.1]
[1731318884440,1.5,81727.0,81725.0,0.1]
[1731318884645,0.12594221,81726.0,81725.0,0.1]
[1731318885544,0.12594221,81726.0,81725.0,0.10476735]
[1731318885765,0.12594221,81726.0,81725.0,0.12712835]
[1731318885927,0.12594221,81726.0,81725.0,0.22712835]
[1731318886889,0.12594221,81726.0,81725.0,0.22912835]
[1731318888106,0.12594221,81726.0,81725.0,0.22856934]
[1731318890268,0.03738999,81733.0,81725.0,0.11120834]
[1731318890487,0.03738999,81733.0,81732.0,0.122351]
[1731318890701,0.18493839,81733.0,81732.0,0.122351]
[1731318890904,0.000843,81733.0,81732.0,0.122351]
[1731318891560,0.1633322,81733.0,81732.0,0.122351]
[1731318892070,0.12678521,81733.0,81732.0,0.122351]
[1731318893670,0.1633322,81733.0,81732.0,0.122351]
[1731318893878,1.6633322,81733.0,81732.0,0.122351]
[1731318894347,1.62678521,81733.0,81732.0,0.122351]
[1731318895889,1.6633322,81733.0,81732.0,0.122351]
[1731318896517,1.62678521,81733.0,81732.0,0.122351]
[1731318896730,1.66335057,81733.0,81732.0,0.122351]
[1731318896935,1.62678521,81733.0,81732.0,0.122351]
[1731318897170,1.66335067,81733.0,81732.0,0.122351]
[1731318897391,1.62678521,81733.0,81732.0,0.122351]
[1731318898056,1.66335355,81733.0,81732.0,0.122351]
[1731318898535,1.62678521,81733.0,81732.0,0.129351]
[1731318898759,0.000843,81733.0,81732.0,0.229351]
[1731318899259,0.12678521,81733.0,81732.0,0.227351]
[1731318899745,0.21008521,81733.0,81732.0,0.222351]
[1731318900581,0.21008521,81733.0,81732.0,0.220351]
[1731318905618,0.24666215,81733.0,81732.0,0.220351]
[1731318906716,0.24666215,81733.0,81732.0,0.222037]
[1731318907074,1.71008521,81733.0,81732.0,0.222037]
[1731318907772,0.21008521,81733.0,81732.0,0.222037]
[1731318908202,0.24667092,81733.0,81732.0,0.222037]
[1731318908531,0.21008521,81733.0,81732.0,0.222037]
[1731318910490,0.12678521,81733.0,81732.0,0.222037]
[1731318911070,0.12678521,81733.0,81732.0,0.227037]
[1731318911275,0.12678521,81733.0,81732.0,0.229037]
[1731318911689,0.12678521,81733.0,81732.0,0.229237]
[1731318911903,0.000843,81733.0,81732.0,0.229237]
[1731318912120,0.091496,81741.0,81732.0,0.229237]
[1731318912121,0.000693,81769.0,81762.0,0.134306]
[1731318912365,0.000693,81769.0,81764.0,0.227303]
[1731318912584,0.000693,81769.0,81764.0,0.229303]
[1731318912788,0.000693,81769.0,81764.0,0.222303]
[1731318913912,0.000693,81769.0,81764.0,0.23103968]
[1731318915951,0.000693,81769.0,81764.0,0.23571478]
[1731318916795,0.12663621,81765.0,81764.0,0.2269781]
[1731318918315,0.12663621,81765.0,81764.0,0.2289781]
[1731318918528,0.12663621,81765.0,81764.0,0.2269781]
[1731318919735,0.20783621,81765.0,81764.0,0.22715598]
[1731318920399,1.70783621,81765.0,81764.0,0.2269781]
[1731318920835,1.70783621,81765.0,81764.0,0.222303]
[1731318921053,1.70783621,81765.0,81764.0,0.22248088]
[1731318921456,1.70783621,81765.0,81764.0,0.122303]
[1731318921655,1.70765832,81765.0,81764.0,0.122303]
[1731318921853,1.70765832,81765.0,81764.0,0.12249683]
[1731318922098,0.023,81764.0,81758.0,0.122311]
[1731318922320,0.12594221,81763.0,81759.0,0.22231]
[1731318922564,0.12594221,81763.0,81759.0,0.1]
[1731318923007,0.12594221,81760.0,81745.0,3.005]
[1731318923210,0.19316778,81759.0,81751.0,0.122322]
[1731318923436,0.023,81757.0,81745.0,3.00478415]
[1731318923612,0.12594221,81756.0,81749.0,0.122325]
[1731318923831,0.12558973,81756.0,81751.0,0.122322]
[1731318924212,0.12558973,81756.0,81753.0,0.122318]
[1731318924420,0.12558973,81756.0,81747.0,0.244657]
[1731318924639,0.12558973,81756.0,81751.0,0.122321]
[1731318925114,1.5,81755.0,81752.0,0.12232]
[1731318925287,0.12594221,81754.0,81752.0,0.12232]
[1731318925693,0.12594221,81754.0,81753.0,0.122319]
[1731318925980,1.62594221,81754.0,81752.0,0.12232]
[1731318926106,1.62594221,81754.0,81748.0,0.1]
[1731318926307,1.62594221,81754.0,81753.0,0.122319]
[1731318927712,0.12594221,81754.0,81753.0,0.122319]
[1731318929897,0.15669239,81754.0,81753.0,0.124005]
[1731318930116,0.12594221,81754.0,81753.0,0.124005]
[1731318930323,0.12594221,81754.0,81753.0,0.001686]
[1731318930540,0.17094221,81754.0,81753.0,0.001686]
[1731318931177,1.67094221,81754.0,81753.0,0.001686]
[1731318931989,1.77194221,81754.0,81753.0,0.001686]
[1731318934378,1.808441,81754.0,81753.0,0.001686]
[1731318934582,1.77194221,81754.0,81753.0,0.001686]
[1731318935219,1.80845486,81754.0,81753.0,0.001686]
[1731318935470,1.80845483,81754.0,81753.0,0.001686]
[1731318936023,1.77194221,81754.0,81753.0,0.001686]
[1731318936415,1.80845483,81754.0,81753.0,0.001686]
[1731318936661,1.80846049,81754.0,81753.0,0.001686]
[1731318936860,1.77194221,81754.0,81753.0,0.001686]
[1731318938016,1.77194221,81754.0,81753.0,0.124005]
[1731318938229,1.77194221,81754.0,81753.0,0.12681454]
[1731318938230,0.20394221,81754.0,81753.0,0.12681454]
[1731318938434,0.12594221,81754.0,81753.0,0.124005]
[1731318938665,0.12594221,81754.0,81753.0,0.001686]
[1731318938991,0.12594221,81754.0,81753.0,0.124005]
[1731318939363,0.12594221,81754.0,81753.0,0.001686]
[1731318939569,0.227907,81754.0,81753.0,0.124005]
[1731318939792,0.12594221,81754.0,81753.0,0.124005]
[1731318940638,0.1624629,81754.0,81753.0,0.001686]
[1731318940844,0.16246793,81754.0,81753.0,0.001686]
[1731318941049,0.12594221,81754.0,81753.0,0.001686]
[1731318941466,0.14894221,81754.0,81753.0,0.001686]
[1731318942304,0.20371114,81754.0,81753.0,0.001686]
[1731318942510,1.70371114,81754.0,81753.0,0.001686]
[1731318942715,1.84686021,81754.0,81753.0,0.001686]
[1731318943132,1.98171911,81754.0,81753.0,0.001686]
[1731318943362,1.98671911,81754.0,81753.0,0.001686]
[1731318943595,1.98671911,81754.0,81745.0,3.0]
[1731318943596,0.12733,81746.0,81745.0,3.0]
[1731318943820,0.70729889,81746.0,81745.0,3.0]
[1731318944840,0.79865317,81746.0,81745.0,3.0]
[1731318945282,2.29865317,81746.0,81745.0,3.0]
[1731318945524,2.20729889,81746.0,81745.0,3.0]
[1731318945745,2.29865317,81746.0,81745.0,3.0]
[1731318945977,2.20729889,81746.0,81745.0,3.0]
[1731318947993,2.25263623,81746.0,81745.0,3.0]
[1731318948569,2.20729889,81746.0,81745.0,2.99]
[1731318949548,2.20726653,81746.0,81745.0,2.99]
[1731318949777,2.20726653,81746.0,81745.0,2.91624691]
[1731318952427,2.45726653,81746.0,81745.0,2.91793491]
[1731318952630,2.45226653,81746.0,81745.0,2.91793491]
[1731318952865,2.52551785,81746.0,81745.0,2.91793491]
[1731318953069,2.43426653,81746.0,81745.0,2.91793491]
[1731318953626,2.50726336,81746.0,81745.0,2.91793491]
[1731318953827,2.43426653,81746.0,81745.0,2.91793491]
[1731318954032,2.45726653,81746.0,81745.0,2.91793491]
[1731318954257,2.53015498,81746.0,81745.0,2.91793491]
[1731318954461,2.45716248,81746.0,81745.0,2.91793491]
[1731318955021,2.67681318,81746.0,81745.0,2.91793491]
[1731318955228,2.74980568,81746.0,81745.0,2.91793491]
[1731318955537,2.63115015,81746.0,81745.0,2.91793491]
[1731318957217,2.58615015,81746.0,81745.0,2.91793491]
[1731318957419,2.38383431,81746.0,81745.0,2.91793491]
[1731318957629,2.45142766,81746.0,81745.0,2.91793491]
[1731318957834,2.33599653,81746.0,81745.0,2.91793491]
[1731318958107,2.50616431,81746.0,81745.0,2.91793491]
[1731318958305,2.58613144,81746.0,81745.0,2.91793491]
[1731318958521,2.45142766,81746.0,81745.0,2.91743491]
[1731318958727,2.58613027,81746.0,81745.0,2.91743491]
[1731318959082,2.76087507,81746.0,81745.0,2.91743491]
[1731318959488,2.70791346,81746.0,81745.0,2.91743491]
[1731318959693,2.63493286,81746.0,81745.0,2.91743491]
[1731318960377,2.72616062,81746.0,81745.0,2.91743491]
[1731318961272,2.72616062,81746.0,81745.0,2.85074459]
[1731318961496,2.72616163,81746.0,81745.0,2.85074459]
[1731318961710,2.76087507,81746.0,81745.0,2.85074459]
[1731318962710,2.76487507,81746.0,81745.0,2.85074459]
[1731318964134,2.76087507,81746.0,81745.0,2.85074459]
[1731318964339,2.76487507,81746.0,81745.0,2.85074459]
[1731318965569,2.76087507,81746.0,81745.0,2.85074459]
[1731318966143,2.63887507,81746.0,81745.0,2.85074459]
[1731318966367,2.5868874,81746.0,81745.0,2.85074459]
[1731318966574,2.46094519,81746.0,81745.0,2.85074459]
[1731318967223,2.46194519,81746.0,81745.0,2.85074459]
[1731318967652,2.46094519,81746.0,81745.0,2.85074459]
[1731318967889,2.46194519,81746.0,81745.0,2.85074459]
[1731318968132,2.46094519,81746.0,81745.0,2.85074459]
[1731318968807,2.55988803,81746.0,81745.0,2.85074459]
[1731318969004,2.55988649,81746.0,81745.0,2.85074459]
[1731318969429,2.50342342,81746.0,81745.0,2.85074459]
[1731318970259,2.50342342,81746.0,81745.0,2.97307559]
[1731318970260,2.20592564,81746.0,81745.0,2.97307559]
[1731318970475,1.66245152,81746.0,81745.0,2.97307559]
[1731318970719,1.62594221,81746.0,81745.0,2.98277957]
[1731318970925,1.62594221,81746.0,81745.0,2.97307559]
[1731318972003,1.62594221,81746.0,81745.0,2.97774697]
[1731318973973,1.62594221,81746.0,81745.0,2.97307559]
[1731318975536,1.62594221,81746.0,81745.0,2.97807559]
[1731318976188,1.62594221,81746.0,81745.0,2.97632559]
[1731318977957,1.62678621,81746.0,81745.0,2.97632559]
[1731318980905,1.62678621,81746.0,81745.0,2.97132559]
[1731318982464,0.12678621,81746.0,81745.0,2.97132559]
[1731318982671,0.000844,81746.0,81745.0,3.19982559]
[1731318982871,0.000844,81746.0,81745.0,3.20182559]
[1731318983300,0.000844,81746.0,81745.0,3.21398921]
[1731318984561,0.000844,81753.0,81745.0,3.21398921]
[1731318984562,0.000844,81753.0,81752.0,0.304321]
[1731318985234,0.000844,81753.0,81752.0,0.302321]
[1731318985717,0.12678621,81753.0,81752.0,0.274421]
[1731318985918,0.12678621,81753.0,81752.0,0.23214454]
[1731318987970,0.000844,81753.0,81752.0,0.23459087]
[1731318988088,0.000844,81753.0,81752.0,0.23807584]
[1731318988288,0.000844,81753.0,81752.0,0.23214454]
[1731318989587,0.000844,81753.0,81752.0,0.23714454]
[1731318989829,0.000844,81753.0,81752.0,0.36464454]
[1731318990463,0.000844,81753.0,81752.0,0.36664454]
[1731318990678,0.000844,81753.0,81752.0,0.35964454]
[1731318990914,0.000844,81753.0,81752.0,0.36164454]
[1731318991166,0.00051611,81765.0,81764.0,0.355003]
[1731318991375,0.00051611,81765.0,81764.0,0.3684918]
[1731318991584,0.00051611,81765.0,81764.0,0.360003]
[1731318991797,0.0372279,81782.0,81764.0,0.360003]
[1731318991798,0.0372279,81782.0,81776.0,0.0341]
[1731318992003,0.0372279,81782.0,81776.0,0.256385]
[1731318992212,0.0372279,81782.0,81776.0,0.25883023]
[1731318992415,0.0372279,81782.0,81776.0,0.256385]
[1731318992838,0.0372279,81782.0,81776.0,0.254385]
[1731318993042,0.0372279,81782.0,81776.0,0.256385]
[1731318993473,0.000693,81782.0,81776.0,0.256385]
[1731318993927,0.000693,81782.0,81776.0,0.227285]
[1731318994128,0.000693,81782.0,81776.0,0.229285]
[1731318995179,0.000693,81782.0,81776.0,0.227285]
[1731318996717,0.000693,81782.0,81776.0,0.23201232]
[1731318997939,0.1259998,81777.0,81776.0,0.23201232]
[1731318998287,0.1259998,81777.0,81776.0,0.23401232]
[1731318998500,5.759e-05,81777.0,81776.0,0.23401232]
[1731318999951,5.759e-05,81777.0,81776.0,0.23201232]
[1731319001870,0.000693,81782.0,81776.0,0.10972732]
[1731319002090,0.000693,81782.0,81781.0,0.222277]
[1731319002738,0.000693,81782.0,81781.0,0.227277]
[1731319003152,0.12663521,81782.0,81781.0,0.229277]
[1731319003799,0.12663521,81782.0,81781.0,0.227277]
[1731319004634,0.12663521,81782.0,81781.0,0.229277]
[1731319005254,0.12663521,81782.0,81781.0,0.227277]
[1731319007136,0.26129873,81782.0,81776.0,0.12701132]
[1731319007362,0.12594221,81781.0,81779.0,0.18409539]
[1731319007581,0.12594221,81781.0,81780.0,0.122279]
[1731319007795,0.12594221,81781.0,81777.0,0.005]
[1731319008004,0.12598221,81781.0,81780.0,0.122279]
[1731319009198,0.14746684,81781.0,81778.0,0.122282]
[1731319009412,0.12598221,81781.0,81780.0,0.122279]
[1731319010079,0.12598221,81781.0,81777.0,0.005]
[1731319010301,0.12598221,81781.0,81775.0,0.00485485]
[1731319010541,0.12598221,81781.0,81776.0,0.24457]
[1731319010754,0.12598221,81781.0,81773.0,0.105]
[1731319010971,0.12598221,81781.0,81775.0,0.122285]
[1731319011190,0.12598221,81781.0,81772.0,0.005]
[1731319011402,0.12598221,81781.0,81773.0,0.122289]
[1731319011611,0.0469,81780.0,81774.0,0.122288]
[1731319011818,0.12594221,81779.0,81774.0,0.122288]
[1731319012232,0.12594221,81779.0,81772.0,0.00483536]
[1731319012468,0.12594221,81779.0,81775.0,0.122285]
[1731319012683,0.12594221,81779.0,81776.0,0.122283]
[1731319012899,0.12594221,81779.0,81774.0,0.122288]
[1731319013112,0.023,81774.0,81769.0,0.122295]
[1731319013329,0.12594221,81773.0,81764.0,0.001686]
[1731319013537,0.1007,81772.0,81764.0,0.001686]
[1731319013751,0.023,81770.0,81764.0,0.001686]
[1731319013981,0.023,81770.0,81766.0,0.122299]
[1731319013982,0.12594221,81769.0,81766.0,0.122299]
[1731319014394,0.12594221,81769.0,81764.0,0.223988]
[1731319014602,0.12594221,81769.0,81765.0,0.1223]
[1731319016523,0.12594221,81769.0,81764.0,0.001686]
[1731319016524,0.31169539,81768.0,81764.0,0.001686]
[1731319016735,0.22794221,81765.0,81764.0,0.001686]
[1731319016946,0.35024321,81765.0,81764.0,0.001686]
[1731319017373,1.85024321,81765.0,81764.0,0.001686]
[1731319017600,1.90438442,81765.0,81764.0,0.001686]
[1731319017828,2.06313427,81765.0,81764.0,0.001686]
[1731319018048,1.93719205,81765.0,81764.0,0.001686]
[1731319018484,1.90074321,81765.0,81764.0,0.001686]
[1731319020477,1.95552526,81765.0,81764.0,0.001686]
[1731319020693,1.81491055,81765.0,81764.0,0.001686]
[1731319020902,1.81491046,81765.0,81764.0,0.001686]
[1731319021417,0.03646825,81765.0,81764.0,0.128989]
[1731319021664,0.17398767,81780.0,81779.0,0.22228]
[1731319021884,0.18478839,81782.0,81780.0,0.1]